fUSD/lending_fUSD_20250916
["ID","MTS","AMOUNT","RATE_DAILY","PERIOD"]
[385847843,1758059526060,-485.67,0.00033422,6]
[385847844,1758059526069,-400.0,0.00033422,6]
[385847845,1758059526078,-467.8,0.00033422,6]
[385847846,1758059526088,-400.0,0.00033422,6]
[385847847,1758059526097,-400.0,0.00033423,6]
[385847848,1758059526106,-265.08047505,0.00033423,6]
[385847849,1758059526116,-467.83,0.00033423,6]
[385847850,1758059526125,-400.0,0.00033423,6]
[385847851,1758059526135,-400.0,0.00033423,6]
[385847852,1758059526144,-400.0,0.00033423,6]
[385847853,1758059526153,-400.0,0.00033423,6]
[385847854,1758059526162,-400.0,0.00033423,6]
[385847855,1758059526171,-400.0,0.00033423,6]
[385847856,1758059526180,-404.580271,0.00033423,6]
[385847857,1758059526189,-453.02,0.00033423,6]
[385847858,1758059526198,-893.66,0.00033423,6]
[385847859,1758059526207,-400.0,0.00033423,6]
[385847860,1758059526216,-400.0,0.00033423,6]
[385847861,1758059526225,-400.0,0.00033423,6]
[385847862,1758059526235,-400.0,0.00033423,6]
[385847863,1758059526244,-400.0,0.00033423,6]
[385847864,1758059526253,-400.0,0.00033423,6]
[385847865,1758059526262,-400.0,0.00033423,6]
[385847866,1758059526271,-400.0,0.00033423,6]
[385847867,1758059526280,-404.97,0.00033423,6]
[385847868,1758059526289,-431.58,0.00033423,6]
[385847869,1758059526298,-564.94,0.00033423,6]
[385847870,1758059526308,-400.0,0.00033423,6]
[385847871,1758059526317,-475.93,0.00033423,6]
[385847872,1758059526326,-646.81,0.00033423,6]
[385847873,1758059526335,-400.0,0.00033423,6]
[385847874,1758059526345,-400.0,0.00033423,6]
[385847875,1758059526354,-503.49,0.00033423,6]
[385847876,1758059526362,-555.18,0.00033423,6]
[385847877,1758059526372,-493.67,0.00033423,6]
[385847878,1758059526381,-406.48,0.00033423,6]
[385847879,1758059526391,-400.0,0.00033423,6]
[385847880,1758059526404,-472.57,0.00033423,6]
[385847881,1758059526413,-566.4,0.00033423,6]
[385847882,1758059526422,-443.11,0.00033423,6]
[385847883,1758059526432,-556.41,0.00033423,6]
[385847884,1758059526443,-642.62,0.00033423,6]
[385847885,1758059526452,-526.48,0.00033423,6]
[385847886,1758059526462,-638.73,0.00033423,6]
[385847887,1758059526471,-400.0,0.00033423,6]
[385847888,1758059526483,-514.99,0.00033423,6]
[385847889,1758059526492,-477.56,0.00033423,6]
[385847890,1758059526502,-400.0,0.00033423,6]
[385847891,1758059526511,-824.84,0.00033423,6]
[385847892,1758059526520,-558.91,0.00033423,6]
[385847893,1758059526529,-429.04,0.00033423,6]
[385847894,1758059526538,-771.88,0.00033423,6]
[385847895,1758059526548,-400.0,0.00033423,6]
[385847896,1758059526557,-456.11,0.00033423,6]
[385847897,1758059526567,-422.65,0.00033423,6]
[385847898,1758059526576,-400.0,0.00033423,6]
[385847899,1758059526586,-400.0,0.00033423,6]
[385847900,1758059526596,-400.0,0.00033423,6]
[385847901,1758059526604,-400.0,0.00033423,6]
[385847902,1758059526614,-682.71,0.00033423,6]
[385847903,1758059526623,-792.25,0.00033423,6]
[385847904,1758059526632,-1411.58,0.00033423,6]
[385847905,1758059526642,-678.71,0.00033423,6]
[385847906,1758059526651,-876.88,0.00033423,6]
[385847907,1758059526660,-922.72,0.00033423,6]
[385847908,1758059526669,-590.13,0.00033423,6]
[385847909,1758059526679,-400.0,0.00033423,6]
[385847910,1758059526688,-741.55,0.00033423,6]
[385847911,1758059526697,-150.0,0.00033423,2]
[385847912,1758059526707,-400.0,0.00033423,6]
[385847913,1758059526717,-400.0,0.00033423,6]
[385847914,1758059526727,-400.0,0.00033423,6]
[385847915,1758059526736,-923.03,0.00033423,6]
[385847916,1758059526746,-590.27,0.00033423,6]
[385847917,1758059526755,-400.0,0.00033424,6]
[385847918,1758059526764,-400.0,0.00033424,6]
[385847919,1758059526773,-433.24218946,0.00033424,6]
[385847920,1758059526782,-400.0,0.00033424,6]
[385847921,1758059526791,-400.0,0.00033424,6]
[385847922,1758059526800,-400.0,0.00033424,6]
[385847923,1758059526810,-304.3072223,0.00033424,6]
[385847924,1758059526820,-446.83,0.00033424,6]
[385847925,1758059526829,-400.0,0.00033424,6]
[385847926,1758059526838,-400.0,0.00033424,6]
[385847927,1758059526848,-547.28,0.00033424,6]
[385847928,1758059526858,-400.0,0.00033424,6]
[385847929,1758059526868,-400.0,0.00033424,6]
[385847930,1758059526877,-400.0,0.00033424,6]
[385847931,1758059526886,-400.0,0.00033424,6]
[385847932,1758059526896,-400.0,0.00033424,6]
[385847933,1758059526906,-400.0,0.00033424,6]
[385847934,1758059526915,-400.0,0.00033424,6]
[385847935,1758059526924,-400.0,0.00033424,6]
[385847936,1758059526933,-400.0,0.00033424,6]
[385847937,1758059526942,-404.16,0.00033424,6]
[385847938,1758059526952,-395.25668797,0.00033424,6]
[385847939,1758059526961,-528.17,0.00033424,6]
[385847940,1758059526970,-542.9,0.00033424,6]
[385847941,1758059526979,-400.0,0.00033424,6]
[385847942,1758059526988,-854.5,0.00033424,6]
[385847943,1758059527000,-403.43,0.00033424,6]
[385847944,1758059527009,-400.0,0.00033424,6]
[385847945,1758059527018,-400.0,0.00033424,6]
[385847946,1758059527029,-400.0,0.00033424,6]
[385847947,1758059527038,-400.0,0.00033424,6]
[385847948,1758059527047,-400.0,0.00033424,6]
[385847949,1758059527056,-400.0,0.00033424,6]
[385847950,1758059527067,-200.73235486,0.00033424,6]
[385847951,1758059527076,-400.0,0.00033424,6]
[385847952,1758059527088,-400.0,0.00033424,6]
[385847953,1758059527097,-400.0,0.00033424,6]
[385847954,1758059527107,-425.79,0.00033424,6]
[385847955,1758059527116,-440.62,0.00033424,6]
[385847956,1758059527126,-627.06,0.00033424,6]
[385847957,1758059527136,-400.0,0.00033424,6]
[385847958,1758059527146,-400.0,0.00033424,6]
[385847959,1758059527155,-404.88,0.00033424,6]
[385847960,1758059527165,-400.0,0.00033424,6]
[385847961,1758059527174,-400.0,0.00033424,6]
[385847962,1758059527184,-597.91,0.00033424,6]
[385847963,1758059527194,-550.75,0.00033424,6]
[385847964,1758059527204,-482.27,0.00033424,6]
[385847965,1758059527214,-400.0,0.00033424,6]
[385847966,1758059527305,-253.18304034,0.00033424,6]
[385847967,1758059527315,-400.0,0.00033424,6]
[385847968,1758059527324,-489.33,0.00033424,6]
[385847969,1758059527334,-400.0,0.00033424,6]
[385847970,1758059527344,-400.0,0.00033424,6]
[385847971,1758059527354,-400.44,0.00033424,6]
[385847972,1758059527365,-432.89,0.00033424,6]
[385847973,1758059527375,-1630.47,0.00033424,6]
[385847974,1758059527385,-400.0,0.00033424,6]
[385847975,1758059527394,-400.0,0.00033424,6]
[385847976,1758059527409,-464.0,0.00033424,6]
[385847977,1758059527418,-541.51,0.00033424,6]
[385847978,1758059527428,-400.0,0.00033424,6]
[385847979,1758059527437,-400.0,0.00033424,120]
[385847980,1758059527450,-400.0,0.00033424,6]
[385847981,1758059527460,-431.13,0.00033424,6]
[385847982,1758059527470,-195.31585498,0.00033424,6]
[385847983,1758059527481,-400.0,0.00033424,6]
[385847984,1758059527490,-666.3,0.00033424,6]
[385847985,1758059527500,-400.0,0.00033424,6]
[385847986,1758059527509,-400.0,0.00033424,6]
[385847987,1758059527518,-547.93,0.00033424,6]
[385847988,1758059527528,-400.0,0.00033424,6]
[385847989,1758059527538,-474.55,0.00033424,6]
[385847990,1758059527547,-681.13,0.00033424,6]
[385847991,1758059527557,-445.76,0.00033424,6]
[385847992,1758059527566,-400.0,0.00033424,6]
[385847993,1758059527575,-400.0,0.00033424,6]
[385847994,1758059527585,-520.69,0.00033424,6]
[385847995,1758059527595,-400.0,0.00033424,6]
[385847996,1758059527604,-402.9,0.00033424,6]
[385847997,1758059527614,-400.0,0.00033424,6]
[385847998,1758059527622,-400.0,0.00033424,6]
[385847999,1758059527632,-400.0,0.00033424,6]
[385848000,1758059527641,-178.5,0.00033424,6]
[385848001,1758059527651,-323.15384983,0.00033424,6]
[385848002,1758059527660,-400.0,0.00033424,6]
[385848003,1758059527669,-438.72,0.00033424,6]
[385848004,1758059527678,-930.22,0.00033424,6]
[385848005,1758059527687,-520.75,0.00033424,6]
[385848006,1758059527696,-400.0,0.00033424,6]
[385848007,1758059527705,-400.0,0.00033424,6]
[385848008,1758059527714,-691.69,0.00033424,6]
[385848009,1758059527723,-541.46,0.00033424,6]
[385848010,1758059527733,-400.0,0.00033424,6]
[385848011,1758059527742,-840.93,0.00033424,6]
[385848012,1758059527751,-400.0,0.00033424,6]
[385848013,1758059527761,-531.61,0.00033424,6]
[385848014,1758059527770,-353.39340666,0.00033424,6]
[385848015,1758059527779,-400.0,0.00033424,6]
[385848016,1758059527788,-528.41,0.00033424,6]
[385848017,1758059527797,-400.0,0.00033424,6]
[385848018,1758059527806,-3105.74,0.00033424,6]
[385848019,1758059527814,-400.0,0.00033424,6]
[385848020,1758059527823,-593.33,0.00033424,6]
[385848021,1758059527834,-530.57,0.00033424,6]
[385848022,1758059527843,-400.0,0.00033424,6]
[385848023,1758059527853,-400.0,0.00033424,6]
[385848024,1758059527863,-801.13,0.00033424,6]
[385848025,1758059527873,-270.03493384,0.00033424,6]
[385848026,1758059527882,-400.0,0.00033424,6]
[385848027,1758059527891,-400.0,0.00033424,6]
[385848028,1758059527900,-400.0,0.00033424,6]
[385848029,1758059527910,-720.72,0.00033424,6]
[385848030,1758059527920,-400.0,0.00033424,6]
[385848031,1758059527930,-450.36,0.00033424,6]
[385848032,1758059527941,-400.0,0.00033424,6]
[385848033,1758059527950,-400.0,0.00033424,6]
[385848034,1758059527959,-400.0,0.00033424,6]
[385848035,1758059527969,-455.66,0.00033424,6]
[385848036,1758059527981,-400.0,0.00033424,6]
[385848037,1758059527990,-400.0,0.00033424,6]
[385848038,1758059528001,-400.0,0.00033424,6]
[385848039,1758059528010,-400.0,0.00033424,6]
[385848040,1758059528020,-452.15,0.00033424,6]
[385848041,1758059528031,-599.86,0.00033424,6]
[385848042,1758059528040,-1299.74,0.00033424,6]
[385848043,1758059528051,-572.67,0.00033424,6]
[385848044,1758059528061,-400.0,0.00033424,6]
[385848045,1758059528071,-542.97900484,0.00033424,6]
[385848046,1758059528081,-422.38,0.00033424,6]
[385848047,1758059528090,-400.0,0.00033424,6]
[385848048,1758059528099,-169.56,0.00033424,6]
[385848049,1758059528109,-404.16,0.00033424,6]
[385848050,1758059528119,-400.0,0.00033424,6]
[385848051,1758059528129,-400.0,0.00033424,6]
[385848052,1758059528138,-400.0,0.00033424,6]
[385848053,1758059528147,-924.76,0.00033424,6]
[385848054,1758059528157,-400.0,0.00033424,6]
[385848055,1758059528166,-1289.24,0.00033424,6]
[385848056,1758059528175,-400.0,0.00033424,6]
[385848057,1758059528185,-554.69,0.00033424,6]
[385848058,1758059528194,-400.0,0.00033424,6]
[385848059,1758059528204,-799.13,0.00033424,6]
[385848060,1758059528213,-467.79,0.00033424,6]
[385848061,1758059528222,-943.71,0.00033424,6]
[385848062,1758059528231,-562.81,0.00033424,6]
[385848063,1758059528241,-617.84,0.00033424,6]
[385848064,1758059528250,-1554.92,0.00033424,6]
[385848065,1758059528259,-472.52,0.00033424,6]
[385848066,1758059528269,-502.44,0.00033424,6]
[385848067,1758059528279,-339.58500761,0.00033424,6]
[385848068,1758059528288,-2454.26,0.00033424,6]
[385848069,1758059528297,-462.44766417,0.00033424,6]
[385848070,1758059528307,-400.0,0.00033424,6]
[385848071,1758059528316,-814.45,0.00033424,6]
[385848072,1758059528327,-581.21,0.00033424,6]
[385848073,1758059528338,-400.0,0.00033424,6]
[385848074,1758059528348,-2151.75,0.00033424,6]
[385848075,1758059528358,-400.0,0.00033424,6]
[385848076,1758059528367,-400.0,0.00033424,6]
[385848077,1758059528377,-590.85,0.00033424,6]
[385848078,1758059528386,-400.0,0.00033424,6]
[385848079,1758059528397,-576.61,0.00033424,6]
[385848080,1758059528409,-217.81590871,0.00033424,6]
[385848081,1758059528419,-616.64,0.00033424,6]
[385848082,1758059528428,-433.67644852,0.00033424,6]
[385848083,1758059528439,-400.0,0.00033424,6]
[385848084,1758059528448,-426.57,0.00033424,6]
[385848085,1758059528457,-2554.31,0.00033424,6]
[385848086,1758059528467,-862.95,0.00033424,6]
[385848087,1758059528479,-695.75,0.00033424,6]
[385848088,1758059528489,-400.0,0.00033424,6]
[385848089,1758059528498,-528.3,0.00033424,6]
[385848090,1758059528508,-465.42,0.00033424,6]
[385848091,1758059528517,-629.46,0.00033424,6]
[385848092,1758059528527,-243.33105078,0.00033424,6]
[385848093,1758059528538,-402.58,0.00033424,6]
[385848094,1758059528547,-760.02,0.00033424,6]
[385848095,1758059528557,-400.0,0.00033424,6]
[385848096,1758059528566,-400.0,0.00033424,6]
[385848097,1758059528575,-573.15,0.00033424,6]
[385848098,1758059528586,-400.0,0.00033424,6]
[385848099,1758059528595,-555.71,0.00033424,6]
[385848100,1758059528604,-400.0,0.00033424,6]
[385848101,1758059528613,-479.18,0.00033424,6]
[385848102,1758059528623,-447.53,0.00033424,6]
[385848103,1758059528633,-400.0,0.00033424,6]
[385848104,1758059528642,-418.11,0.00033424,6]
[385848105,1758059528651,-423.89,0.00033424,6]
[385848106,1758059528661,-435.17,0.00033424,6]
[385848107,1758059528671,-450.0,0.00033424,6]
[385848108,1758059528680,-400.0,0.00033424,6]
[385848109,1758059528690,-400.0,0.00033424,6]
[385848110,1758059528700,-400.0,0.00033424,6]
[385848111,1758059528709,-168.35421532,0.00033424,6]
[385848112,1758059528718,-778.74,0.00033424,6]
[385848113,1758059528727,-704.61,0.00033424,6]
[385848114,1758059528737,-400.0,0.00033424,6]
[385848115,1758059528746,-1172.18,0.00033424,6]
[385848116,1758059528755,-5286.95,0.00033424,6]
[385848117,1758059528765,-400.0,0.00033424,6]
[385848118,1758059528774,-400.0,0.00033424,6]
[385848119,1758059528783,-542.4,0.00033424,6]
[385848120,1758059528792,-400.0,0.00033424,6]
[385848121,1758059528801,-400.0,0.00033424,6]
[385848122,1758059528811,-400.0,0.00033424,6]
[385848123,1758059528820,-435.09,0.00033424,6]
[385848124,1758059528830,-527.52,0.00033424,6]
[385848125,1758059528839,-551.22,0.00033424,6]
[385848126,1758059528849,-400.0,0.00033424,6]
[385848127,1758059528858,-400.0,0.00033424,6]
[385848128,1758059528868,-155.139984,0.00033424,6]
[385848129,1758059528878,-483.09,0.00033424,6]
[385848130,1758059528889,-402.69724093,0.00033424,6]
[385848131,1758059528899,-248.70615327,0.00033424,6]
[385848132,1758059528910,-777.85,0.00033424,6]
[385848133,1758059528920,-400.0,0.00033424,6]
[385848134,1758059528930,-445.13,0.00033424,6]
[385848135,1758059528939,-510.44,0.00033424,6]
[385848136,1758059528949,-650.71,0.00033424,6]
[385848137,1758059528958,-632.37,0.00033424,6]
[385848138,1758059528967,-400.0,0.00033424,6]
[385848139,1758059528977,-400.0,0.00033424,6]
[385848140,1758059528986,-400.0,0.00033424,6]
[385848141,1758059528995,-400.0,0.00033424,6]
[385848142,1758059529005,-763.55,0.00033424,6]
[385848143,1758059529014,-400.0,0.00033424,6]
[385848144,1758059529024,-701.89,0.00033424,6]
[385848145,1758059529034,-400.0,0.00033424,6]
[385848146,1758059529044,-796.09,0.00033424,6]
[385848147,1758059529054,-620.92,0.00033424,6]
[385848148,1758059529063,-400.0,0.00033424,6]
[385848149,1758059529072,-453.55237188,0.00033424,6]
[385848150,1758059529082,-400.0,0.00033424,6]
[385848151,1758059529091,-400.0,0.00033424,6]
[385848152,1758059529101,-400.0,0.00033424,6]
[385848153,1758059529110,-400.0,0.00033424,6]
[385848154,1758059529119,-400.0,0.00033424,6]
[385848155,1758059529129,-400.0,0.00033424,6]
[385848156,1758059529138,-400.0,0.00033424,6]
[385848157,1758059529148,-745.62,0.00033424,6]
[385848158,1758059529157,-629.24,0.00033424,6]
[385848159,1758059529166,-447.35,0.00033424,6]
[385848160,1758059529176,-400.0,0.00033424,6]
[385848161,1758059529185,-400.0,0.00033424,6]
[385848162,1758059529195,-936.1,0.00033424,6]
[385848163,1758059529204,-400.0,0.00033424,6]
[385848164,1758059529214,-400.0,0.00033424,6]
[385848165,1758059529223,-400.0,0.00033424,6]
[385848166,1758059529232,-1215.29,0.00033424,6]
[385848167,1758059529242,-400.0,0.00033424,6]
[385848168,1758059529252,-400.0,0.00033424,6]
[385848169,1758059529261,-470.35,0.00033424,6]
[385848170,1758059529270,-400.0,0.00033424,6]
[385848171,1758059529279,-268.77066443,0.00033424,6]
[385848172,1758059529289,-722.71,0.00033424,6]
[385848173,1758059529298,-400.0,0.00033424,6]
[385848174,1758059529308,-656.3,0.00033424,6]
[385848175,1758059529317,-1790.44,0.00033424,6]
[385848176,1758059529327,-400.0,0.00033424,6]
[385848177,1758059529338,-400.0,0.00033424,6]
[385848178,1758059529347,-1382.16,0.00033424,6]
[385848179,1758059529356,-400.0,0.00033424,6]
[385848180,1758059529366,-429.26,0.00033424,6]
[385848181,1758059529375,-1005.55,0.00033424,6]
[385848182,1758059529385,-281.99201686,0.00033424,6]
[385848183,1758059529397,-400.0,0.00033424,6]
[385848184,1758059529407,-199.49472786,0.00033424,6]
[385848185,1758059529417,-400.0,0.00033424,6]
[385848186,1758059529427,-690.12,0.00033424,6]
[385848187,1758059529437,-400.0,0.00033424,6]
[385848188,1758059529447,-607.8,0.00033424,6]
[385848189,1758059529456,-400.0,0.00033424,6]
[385848190,1758059529466,-671.41,0.00033424,6]
[385848191,1758059529476,-1101.76,0.00033424,6]
[385848192,1758059529486,-644.78,0.00033424,6]
[385848193,1758059529496,-400.0,0.00033424,6]
[385848194,1758059529506,-331.60642735,0.00033424,6]
[385848195,1758059529515,-400.0,0.00033424,6]
[385848196,1758059529525,-783.19,0.00033424,6]
[385848197,1758059529535,-452.87779953,0.00033424,6]
[385848198,1758059529545,-400.0,0.00033424,6]
[385848199,1758059529555,-467.3,0.00033424,6]
[385848200,1758059529564,-450.16,0.00033424,6]
[385848201,1758059529574,-413.25477031,0.00033424,6]
[385848202,1758059529584,-400.0,0.00033424,6]
[385848203,1758059529594,-400.0,0.00033424,6]
[385848204,1758059529603,-400.0,0.00033424,6]
[385848205,1758059529614,-1181.9,0.00033424,6]
[385848206,1758059529623,-431.77,0.00033424,6]
[385848207,1758059529634,-1421.99,0.00033424,6]
[385848208,1758059529644,-604.53,0.00033424,6]
[385848209,1758059529654,-400.0,0.00033424,6]
[385848210,1758059529663,-417.22,0.00033424,6]
[385848211,1758059529673,-633.44,0.00033424,6]
[385848212,1758059529682,-400.0,0.00033424,6]
[385848213,1758059529694,-400.0,0.00033424,6]
[385848214,1758059529704,-400.0,0.00033424,6]
[385848215,1758059529714,-400.0,0.00033424,6]
[385848216,1758059529724,-500.0,0.00033444,7]
[385848217,1758059529733,-1912.3537123,0.00033451,2]
[385848218,1758059529742,-684.03,0.00033485,2]
[385848219,1758059529752,-400.0,0.00033486,6]
[385848220,1758059529762,-892.92,0.00033486,6]
[385848221,1758059529773,-400.0,0.00033486,6]
[385848222,1758059529782,-568.06,0.00033486,6]
[385848223,1758059529792,-1072.67,0.00033486,6]
[385848224,1758059529801,-512.55,0.00033486,6]
[385848225,1758059529811,-774.02,0.00033486,5]
[385848226,1758059529821,-400.0,0.00033486,6]
[385848227,1758059529830,-400.0,0.00033486,6]
[385848228,1758059529840,-500.0,0.00033507,7]
[385848229,1758059529850,-500.0,0.00033507,7]
[385848230,1758059529860,-1100.0,0.00033515,7]
[385848231,1758059529871,-500.0,0.00033568,7]
[385848232,1758059529882,-500.0,0.00033569,7]
[385848233,1758059529892,-1100.0,0.00033574,7]
[385848234,1758059529903,-500.0,0.00033584,7]
[385848235,1758059529915,-300.0,0.00033595,10]
[385848236,1758059529926,-155.0,0.000336,120]
[385848237,1758059529936,-500.0,0.00033648,7]
[385848238,1758059529947,-2058.39,0.00033659,6]
[385848239,1758059529956,-400.0,0.00033659,6]
[385848240,1758059529966,-412.53,0.00033659,6]
[385848241,1758059529975,-618.61,0.00033659,6]
[385848242,1758059529986,-1651.68,0.00033659,6]
[385848243,1758059529995,-2717.2,0.00033659,6]
[385848244,1758059530006,-400.0,0.00033659,6]
[385848245,1758059530016,-462.71,0.00033659,6]
[385848246,1758059530026,-400.0,0.00033659,6]
[385848247,1758059530036,-400.0,0.00033659,6]
[385848248,1758059530046,-400.0,0.00033659,6]
[385848249,1758059530056,-410.76479998,0.00033659,6]
[385848250,1758059530066,-3231.76,0.00033659,6]
[385848251,1758059530076,-436.89,0.00033659,6]
[385848252,1758059530086,-1556.21254549,0.00033661,2]
[385848253,1758059530096,-1200.0,0.00033668,7]
[385848254,1758059530106,-500.0,0.00033686,7]
[385848255,1758059530116,-151.0,0.00033693,7]
[385848256,1758059530126,-300.0,0.00033695,10]
[385848257,1758059530136,-300.0,0.00033695,10]
[385848258,1758059530145,-684.03,0.00033695,2]
[385848259,1758059530155,-684.03,0.00033695,2]
[385848260,1758059530165,-503681.66245777,0.00033696,2]
[385848261,1758059530175,-3055.38481087,0.00033696,7]
[385848262,1758059530185,-300.0,0.00033696,10]
[385848263,1758059530195,-485.67,0.00033696,6]
[385848264,1758059530206,-400.0,0.00033696,6]
[385848265,1758059530216,-467.8,0.00033696,6]
[385848266,1758059530226,-400.0,0.00033696,6]
[385848267,1758059530236,-400.0,0.00033697,6]
[385848268,1758059530245,-467.83,0.00033697,6]
[385848269,1758059530255,-400.0,0.00033697,6]
[385848270,1758059530271,-400.0,0.00033697,6]
[385848271,1758059530281,-446.63456564,0.00033697,6]
[385848272,1758059530291,-400.0,0.00033697,6]
[385848273,1758059530300,-286.96798403,0.00033697,6]
[385848274,1758059530310,-310.60680921,0.00033697,6]
[385848275,1758059530319,-453.02,0.00033697,6]
[385848276,1758059530329,-893.66,0.00033697,6]
[385848277,1758059530339,-389.88627609,0.00033697,6]
[385848278,1758059530348,-385.33150096,0.00033697,6]
[385848279,1758059530359,-400.0,0.00033697,6]
[385848280,1758059530368,-443.20449922,0.00033697,6]
[385848281,1758059530378,-400.0,0.00033697,6]
[385848282,1758059530388,-400.0,0.00033697,6]
[385848283,1758059530401,-400.0,0.00033697,6]
[385848284,1758059530411,-400.0,0.00033697,6]
[385848285,1758059530421,-400.0,0.00033697,6]
[385848286,1758059530431,-404.97,0.00033697,6]
[385848287,1758059530441,-431.58,0.00033697,6]
[385848288,1758059530451,-564.94,0.00033697,6]
[385848289,1758059530461,-400.0,0.00033697,6]
[385848290,1758059530472,-475.93,0.00033697,6]
[385848291,1758059530483,-646.81,0.00033697,6]
[385848292,1758059530493,-400.0,0.00033697,6]
[385848293,1758059530503,-400.0,0.00033697,6]
[385848294,1758059530513,-503.49,0.00033697,6]
[385848295,1758059530523,-555.18,0.00033697,6]
[385848296,1758059530533,-493.67,0.00033697,6]
[385848297,1758059530543,-406.48,0.00033697,6]
[385848298,1758059530553,-400.0,0.00033697,6]
[385848299,1758059530563,-472.57,0.00033697,6]
[385848300,1758059530573,-566.4,0.00033697,6]
[385848301,1758059530583,-443.11,0.00033697,6]
[385848302,1758059530593,-556.41,0.00033697,6]
[385848303,1758059530603,-642.62,0.00033697,6]
[385848304,1758059530613,-526.48,0.00033697,6]
[385848305,1758059530623,-638.73,0.00033697,6]
[385848306,1758059530633,-400.0,0.00033697,6]
[385848307,1758059530643,-514.99,0.00033697,6]
[385848308,1758059530653,-477.56,0.00033697,6]
[385848309,1758059530663,-400.0,0.00033697,6]
[385848310,1758059530673,-824.84,0.00033697,6]
[385848311,1758059530683,-558.91,0.00033697,6]
[385848312,1758059530692,-429.04,0.00033697,6]
[385848313,1758059530702,-771.88,0.00033697,6]
[385848314,1758059530712,-400.0,0.00033697,6]
[385848315,1758059530722,-456.11,0.00033697,6]
[385848316,1758059530732,-422.65,0.00033697,6]
[385848317,1758059530741,-400.0,0.00033697,6]
[385848318,1758059530751,-400.0,0.00033697,6]
[385848319,1758059530941,-400.0,0.00033697,6]
[385848320,1758059530950,-400.0,0.00033697,6]
[385848321,1758059530960,-308.69935872,0.00033697,10]
[385848322,1758059530969,-682.71,0.00033697,6]
[385848323,1758059530979,-792.25,0.00033697,6]
[385848324,1758059530989,-1411.58,0.00033697,6]
[385848325,1758059530998,-678.71,0.00033697,6]
[385848326,1758059531008,-876.88,0.00033697,6]
[385848327,1758059531018,-922.72,0.00033697,6]
[385848328,1758059531031,-590.13,0.00033697,6]
[385848329,1758059531041,-400.0,0.00033697,6]
[385848330,1758059531051,-741.55,0.00033697,6]
[385848331,1758059531061,-400.0,0.00033697,6]
[385848332,1758059531071,-400.0,0.00033697,6]
[385848333,1758059531080,-400.0,0.00033697,6]
[385848334,1758059531094,-923.03,0.00033697,6]
[385848335,1758059531103,-590.27,0.00033697,6]
[385848336,1758059531113,-547.76527371,0.00033698,6]
[385848337,1758059531122,-400.0,0.00033698,6]
[385848338,1758059531131,-400.0,0.00033698,6]
[385848339,1758059531140,-454.16463531,0.00033698,6]
[385848340,1758059531150,-400.0,0.00033698,6]
[385848341,1758059531159,-446.83,0.00033698,6]
[385848342,1758059531168,-400.0,0.00033698,6]